Cogmind - Beta 10.2 *** ADVENTURER MODE // 2021.01.05 @ 22:04:02 Player: Yog-Sothoth Result: Self-destructed Performance ------------- Evolutions (2) 1000 Regions Visited (3) 600 Robots Destroyed (39) 195 Value Destroyed (987) 987 Prototype IDs (10) 200 Alien Tech Used (0) 0 Bonus (11) 11 TOTAL SCORE: 2993 Bonus ------- High Alert Combat Kills 11 Cogmind --------- Core Integrity 450/550 Matter 190/300 Energy 460/460 System Corruption 0% Temperature Cool (9) Movement Flying (200) Ox2 Location -8/Materials Parts ------- > --- POWER (2) -------- Cooled Ion Engine Cooled Ion Engine > --- PROPULSION (3) --- Xenon Bombardment Thruster > --- UTILITY (4) ------ Cooling System Improved Signal Interpreter > --- WEAPON (2) ------- High-powered Shotgun > --- INVENTORY (4) ---- System Shield Heavy Particle Gun Scythe Scythe Peak State ------------ > --- POWER ------------ Cooled Ion Engine Cooled Ion Engine > --- PROPULSION ------- Xenon Bombardment Thruster Xenon Bombardment Thruster Xenon Bombardment Thruster > --- UTILITY ---------- Cooling System Weight Redist. System Improved Sensor Array Improved Signal Interpreter > --- WEAPON ----------- Heavy Particle Gun Heavy Particle Gun > --- INVENTORY -------- Xenon Bombardment Thruster Improved EM Shotgun Shock Rifle Heavy Particle Gun [Rating: 35] Favorites ----------- Power Cooled Ion Engine Engine Cooled Ion Engine Propulsion Compact Wheel Leg Aluminum Leg Wheel Compact Wheel Hover Unit Hover Unit Flight Unit Xenon Bombardment Thruster Utility Cooling System Device Cooling System Storage Medium Battery Processor Improved Signal Interpreter Weapon Improved EM Shotgun Energy Gun Improved EM Shotgun Ballistic Gun Light Assault Rifle Ballistic Cannon Light Cannon Impact Weapon Heavy Hammer Slashing Weapon Scythe Build | -11 -10 -9 -8 ------- Run | Scr Mat Mat Mat Slots Evolved 4 | . . 2 2 Power 1 | . . . 1 Propulsion 1 | . . . 1 Utility 2 | . . 2 . Weapon . | . . . . Parts Attached 56 | 6 8 27 15 Power 6 | 1 1 3 1 Engine 6 | 1 1 3 1 Core . | . . . . Reactor . | . . . . Propulsion 17 | 2 1 9 5 Treads . | . . . . Leg 2 | . . 2 . Wheel 2 | 2 . . . Hover 3 | . . 3 . Flight 10 | . 1 4 5 Utility 14 | 1 3 9 1 Device 9 | . 2 6 1 Storage 3 | 1 1 1 . Processor 2 | . . 2 . Hackware . | . . . . Protection . | . . . . Artifact . | . . . . Weapon 19 | 2 3 6 8 Energy Gun 13 | 2 1 4 6 Energy Cannon . | . . . . Ballistic Gun 3 | . 1 1 1 Ballistic Cannon 1 | . . 1 . Launcher . | . . . . Special Weapon . | . . . . Impact Weapon 1 | . 1 . . Slashing Weapon 1 | . . . 1 Piercing Weapon . | . . . . Special Melee Weapon . | . . . . Unidentified Prototypes 2 | . . 1 1 Parts Lost 14 | . 1 5 8 Power 1 | . . 1 . Propulsion 5 | . 1 1 3 Utility 5 | . . 2 3 Weapon 3 | . . 1 2 Highest Loss Streak 5 | . 1 4 5 Average Slot Usage (%) 94 | . 96 92 97 Engine 12 | . 14 10 17 Leg 3 | . . 6 . Wheel 8 | . 26 . . Hover 1 | . . 3 . Flight 9 | . . 8 26 Device 21 | . 11 26 25 Storage 7 | . 15 4 . Processor 7 | . . 11 9 Energy Gun 12 | . 13 10 15 Ballistic Gun 2 | . 1 2 1 Ballistic Cannon 1 | . . 3 . Impact Weapon 5 | . 11 3 . Naked Turns . | . . . . Heaviest Build 25 | 9 14 18 25 Greatest Support 32 | 32 32 26 27 Greatest Overweight (x) 1 | 1 . 1 . Average Overweight (x) . | . . . . Largest Inventory Capacity 6 | 6 6 4 4 Average Capacity 4 | 5 4 4 4 Most Carried 5 | 3 5 4 4 Average Carried 3 | 1 3 3 3 Final Capacity 6 | 6 4 4 4 Final Carried 4 | 2 4 4 4 Class Distribution -------------------- 70% | Mutant 17% | Scavenger-Mutant 12% | Sprinter Dominant Class ---------------- Mutant | -10/Materials Mutant | -9/Materials Mutant | -8/Materials Resources | -11 -10 -9 -8 ----------- Run | Scr Mat Mat Mat Matter Collected 729 | 244 91 299 95 Remotely . | . . . . Salvage Created 1548 | . 344 802 402 Parts 83 | . 16 47 20 Haulers Intercepted 6 | . 2 3 1 Recyclers Shooed 1 | . . . 1 Parts Field Recycled . | . . . . Retrieved Matter . | . . . . Parts Self-Destructed . | . . . . Prevented . | . . . . Kills | -11 -10 -9 -8 ------- Run | Scr Mat Mat Mat Combat Hostiles Destroyed 23 | . 6 9 8 Melee 5 | . 2 3 . Guns 15 | . 4 3 8 Cannons 3 | . . 3 . Classes Destroyed 8 | . 4 3 1 Builder 1 | . . 1 . Hauler 6 | . 2 3 1 Recycler 2 | . . 2 . Operator 1 | . . . 1 Watcher 6 | . 2 3 1 Swarmer 6 | . 3 . 3 Grunt 12 | . 3 4 5 Sentry 5 | . . 5 . Best Kill Streak 5 | . 3 5 3 Combat Bots Only 3 | . 3 3 3 Max Kills in Single Turn 2 | . 1 1 2 Gunslinging 1 | . . . 1 Exploded . | . . . . Melee 1 | . 1 1 . Uniques/NPCs Destroyed . | . . . . Combat | -11 -10 -9 -8 -------- Run | Scr Mat Mat Mat Damage Taken 1550 | . 304 461 785 Core 370 | . 101 169 100 Absorbed by Shields . | . . . . Core Remaining (%) 72 | 100 59 57 . Volleys Fired 82 | . 23 31 28 Largest 2 | . 1 2 2 Hottest 110 | . 40 90 110 Shots Fired 137 | . 23 58 56 Gun 116 | . 23 37 56 Cannon 21 | . . 21 . Launcher . | . . . . Special . | . . . . Kinetic 39 | . . 33 6 Thermal 40 | . 8 . 32 Explosive . | . . . . Electromagnetic 58 | . 15 25 18 Robot Hit Streak 30 | . 12 23 30 Robot Miss Streak 2 | . 2 2 2 Penetration Max . | . . . . Secondary Targets 4 | . . . 4 Max Gunslinging Chain 1 | . . . 1 Shots Hit Robots 134 | . 31 57 46 Core Hits 62 | . 14 25 23 Critical Hits 3 | . . 2 1 Critical Kills 2 | . . 2 . Critical Parts Destroyed 1 | . . . 1 Melee Attacks 25 | . 13 11 1 Impact 24 | . 13 11 . Slashing 1 | . . . 1 Piercing . | . . . . Sneak Attacks 1 | . 1 . . Combat Hostiles . | . . . . Follow-up Attacks . | . . . . Damage Inflicted 2620 | . 583 1018 1019 Guns 1598 | . 254 507 837 Cannons 249 | . . 249 . Explosions 204 | . . 60 144 Melee 569 | . 329 202 38 Ramming . | . . . . Kinetic 545 | . . 393 152 Thermal 692 | . 66 60 566 Explosive . | . . . . Electromagnetic 814 | . 188 363 263 Impact 531 | . 329 202 . Slashing 38 | . . . 38 Piercing . | . . . . Highest Corruption 1 | . 1 . . Average Corruption 1 | . 1 . . Corruption Purged . | . . . . Effects 2 | . 2 . . Message Errors 1 | . 1 . . Energy Discharges 1 | . 1 . . Overload Shots . | . . . . Overflow Damage 32 | . 23 . 9 Projectiles . | . . . . Explosions 9 | . . . 9 Melee 23 | . 23 . . Knockbacks 2 | . 1 1 . Impact 1 | . 1 . . Kinetic 1 | . . 1 . Secondary . | . . . . Self-Inflicted Damage 105 | . . 25 80 Shots 3 | . . 1 2 Rammed . | . . . . Targets Rammed . | . . . . Kicked . | . . . . Crushed . | . . . . Highest Temperature 176 | . 51 42 176 Average Temperature 37 | . 29 21 47 Received Heat Transfer 828 | . 204 228 396 Siege Activations . | . . . . Robots Corrupted . | . . . . Combat Hostiles . | . . . . Parts Fried 7 | . 5 1 1 Impact Corruptions 2 | . 2 . . Robots Melted . | . . . . Combat Hostiles . | . . . . Parts Melted 2 | . . . 2 Heat Transferred 1164 | . 150 100 914 Parts Sabotaged . | . . . . Parts Stolen . | . . . . Parts Stripped . | . . . . Power Chain Reactions 3 | . . 2 1 Missiles Intercepted . | . . . . Alert | -11 -10 -9 -8 ------- Run | Scr Mat Mat Mat Peak Influence 381 | . 175 209 381 Initial 37 | . . 14 37 Average 102 | . 97 80 192 Maximum Alert Level 1 | . . 1 1 Low Security (%) 88 | 100 100 94 46 Level 1 11 | . . 5 53 Level 2 . | . . . . Level 3 . | . . . . Level 4 . | . . . . Level 5 . | . . . . High Security . | . . . . Max Security . | . . . . Squads Dispatched 2 | . 1 1 . Investigation 2 | . 1 1 . Extermination . | . . . . Reinforcement . | . . . . Assault . | . . . . Garrison . | . . . . Intercept . | . . . . Construction Impeded . | . . . . Haulers Reinforced . | . . . . Stealth | -11 -10 -9 -8 --------- Run | Scr Mat Mat Mat Distress Signals 4 | . 2 2 . Communications Jammed . | . . . . Distress Signals . | . . . . Times Spotted 48 | . 15 14 19 Peak Tracking Total 9 | . 4 7 9 Tactical Retreats 4 | . . 1 3 Traps | -11 -10 -9 -8 ------- Run | Scr Mat Mat Mat Traps Triggered . | . . . . Indirectly . | . . . . Trap Hack Attempts . | . . . . Triggered . | . . . . Disarmed . | . . . . Reprogrammed . | . . . . Reused . | . . . . Traps Extracted . | . . . . Installed . | . . . . Triggered 1 | . 1 . . Machines | -11 -10 -9 -8 ---------- Run | Scr Mat Mat Mat Machines Disabled 5 | . . 2 3 Max in Single Turn 2 | . . 1 2 Machines Sabotaged . | . . . . Garrisons Compromised . | . . . . Overloaded Fab Kills . | . . . . Fab Network Shutdowns . | . . . . Hacking | -11 -10 -9 -8 --------- Run | Scr Mat Mat Mat Machines Accessed 12 | . 5 6 1 Terminals 10 | . 4 5 1 Fabricators . | . . . . Repair Stations . | . . . . Recycling Units 2 | . 1 1 . Scanalyzers . | . . . . Garrison Access . | . . . . Total Hacks 30 | . 11 16 3 Successful 22 | . 6 14 2 Failed 8 | . 5 2 1 Catastrophic . | . . . . Database Lockouts . | . . . . Manual . | . . . . Terminals 28 | . 10 15 3 Fabricators . | . . . . Repair Stations . | . . . . Recycling Units 2 | . 1 1 . Scanalyzers . | . . . . Garrison Access . | . . . . Terminal Hacks 20 | . 5 13 2 Record 1 | . . 1 . Prototype ID Bank 6 | . 2 3 1 Level Access Points 1 | . . 1 . Branch Access Points 2 | . 1 1 . Emergency Access Points 1 | . . 1 . Alert Level 1 | . . 1 . Unreport Threat 1 | . . 1 . Locate Traps 2 | . 1 1 . Dispatch Records 1 | . . 1 . Hauler Manifests 3 | . 1 1 1 Registered Prototypes 1 | . . 1 . Fabricator Hacks . | . . . . Repair Station Hacks . | . . . . Recycling Unit Hacks 2 | . 1 1 . Report Inventory 2 | . 1 1 . Scanalyzer . | . . . . Garrison Access Hacks . | . . . . Unauthorized Hacks . | . . . . Terminals . | . . . . Fabricators . | . . . . Repair Stations . | . . . . Recycling Units . | . . . . Scanalyzers . | . . . . Garrison Access . | . . . . Data Cores Recovered 1 | . . . 1 Used . | . . . . Hacking Detections 9 | . 4 5 . Full Trace Events 2 | . 1 1 . Feedback Events 1 | . 1 . . Corruption 1 | . 1 . . Feedback Blocked . | . . . . Robot Schematics Acquired . | . . . . Robots Built . | . . . . Matter . | . . . . Time . | . . . . Total Robot Build Rating . | . . . . Part Schematics Acquired . | . . . . Parts Built . | . . . . Matter . | . . . . Time . | . . . . Total Part Build Rating . | . . . . Parts Repaired . | . . . . Time . | . . . . Parts Recycled . | . . . . Recycled Matter . | . . . . Retrieved Matter . | . . . . Retrieved Components . | . . . . Parts Scanalyzed . | . . . . Part Schematics Acquired . | . . . . Parts Damaged . | . . . . Bothacking | -11 -10 -9 -8 ------------ Run | Scr Mat Mat Mat Used RIF Installer . | . . . . Robots Hacked . | . . . . Non-combat . | . . . . Combat . | . . . . Robot Hacks Applied . | . . . . Relay Couplers Released . | . . . . Robots Rewired . | . . . . Allies Hacked . | . . . . Hacks Repelled . | . . . . Allies | -11 -10 -9 -8 -------- Run | Scr Mat Mat Mat Total Allies . | . . . . Largest Group . | . . . . Highest-Rated Group . | . . . . Highest-Rated Ally . | . . . . Total Orders . | . . . . Ally Attacks . | . . . . Total Damage . | . . . . Kills . | . . . . Allies Corrupted . | . . . . Allies Melted . | . . . . Intel | -11 -10 -9 -8 ------- Run | Scr Mat Mat Mat Robot Analysis Total . | . . . . Derelict Logs Recovered . | . . . . Drone Launches . | . . . . Drone Recoveries . | . . . . Exploration | -11 -10 -9 -8 ------------- Run | Scr Mat Mat Mat Turns Passed 1525 | 60 465 733 267 Spaces Moved 1114 | 54 309 468 283 Core 59 | 23 . 36 . Treads . | . . . . Legs 110 | . . 110 . Wheels 292 | 31 261 . . Hover 69 | . . 69 . Flight 584 | . 48 253 283 Fastest Speed 30 | 50 40 32 30 Average Speed 63 | 83 90 61 33 Slowest Speed 120 | 100 100 120 34 Overloaded Moves . | . . . . Propulsion Burnouts . | . . . . Robots Hopped 6 | . 2 1 3 Cave-ins Triggered . | . . . . Exploration Rate (%) 29 | 4 54 34 26 Regions Visited 3 Branch Regions . Pre-discovered Areas . | . . . . Known Exits Taken 1 | . . 1 . Unknown Exits Taken 2 | 1 1 . . Scrap Searched . | . . . . Spaces Dug . | . . . . Terrain Destroyed 31 | . . 5 26 Melee . | . . . . Projectile . | . . . . AOE 31 | . . 5 26 Terrain Rammed . | . . . . Walls Destroyed . | . . . . Machines Disabled . | . . . . Actions | -11 -10 -9 -8 --------- Run | Scr Mat Mat Mat Total 1737 | 67 441 837 392 Wait 387 | . 81 258 48 Move 1099 | 53 304 465 277 Hop 6 | . 2 1 3 Pick Up 39 | 5 5 19 10 Fast Attach 23 | 6 2 10 5 Attach 10 | . 1 6 3 Detach . | . . . . Swap 23 | . 5 11 7 Drop 43 | 3 5 25 10 Fire 82 | . 23 31 28 Melee 25 | . 13 11 1 Ram . | . . . . Kick . | . . . . Crush . | . . . . Escape Stasis . | . . . . Rewire . | . . . . Trap . | . . . . Miscellaneous . | . . . . Route ------- -11/Scrapyard -10/Materials (discovered 2 exits: *Mat / *Min) -9/Materials (discovered 4 exits: *Mat x3 / Min) -8/Materials (discovered 1 exit: *Sto) History --------- Turn | Location | Event 6 | -11/Scrapyard | Discovered new exit (range 16) 61 | -11/Scrapyard | Entered Materials 228 | -10/Materials | Discovered new exit (range 12) 318 | -10/Materials | Build established: Mutant 443 | -10/Materials | Identified exit to Mines 458 | -10/Materials | Discovered new exit (range 13) 526 | -10/Materials | Entered another Materials area 526 | -9/Materials | Evolved 2 slots: Utility x2 660 | -9/Materials | Lost 4 parts (1p1n1u1w) 741 | -9/Materials | Identified exit to Mines 1003 | -9/Materials | Identified exit to Materials 1259 | -9/Materials | Entered another Materials area 1259 | -8/Materials | Evolved 2 slots: Power x1, Propulsion x1 1375 | -8/Materials | Discovered new exit (range 11) 1403 | -8/Materials | Identified exit to Storage 1526 | -8/Materials | Self-destructed Last Messages --------------- Acquired data core, extracted dynamic key. Decrypted 1 local trap positions from data. Acquired 12 matter. Acquired Scythe. Acquired Maneuvering Thrusters. Dropped Hvy. Particle Gun. Acquired Scythe. Xenon Bombardment Thruster destroyed. Acquired Hpw. Shotgun. G-47 Trooper suffers critical hit. Destroyed Aluminum Leg. G-47 Trooper destroyed. G-50 Soldier destroyed. Atomic Centrifuge disabled. G-47 Trooper destroyed. Xenon Bombardment Thruster destroyed. Shock Rifle destroyed. Weight Redist. System destroyed. Xenon Bombardment Thruster destroyed. Maneuvering Thrusters destroyed. Map ----- +----------------------------------------------------+ | | | | | | | | | ??????????????????????????????? | | ??????????????????????????????? | | ??????????????????????????????? | | ??????????????????????????????? | | ??????????????????????????????? | | ??????????????????????????????? | | ??????????????????????????????? | | ???????#######+####???????????? | | ???????# ? #???????????? | | ???????# ? #???????????? | | ???????+ """ #???????????? | | ???????# """ #???????????? | | ######?# """ #???????????? | | #?#^ ! ????######??? | | #?# ????##!!!!##?? | | /!! #?# """ #?????#! !#?? | | /!! #?# """ #?????#! !#?? | | /! ### """ ####### #????? | | #????? | | #????? | | ########/##############+#####?? | | ????# ] #????# Y%%@= #?? | | ????# #????# """Ygl* #?? | | ????# """ !#????# """ [ ] #?? | | ????# """ /![#????#g"S #?? | | ????# """ /!!#????# """ "" #?? | | ????# """ #????# "" """ #?? | | ????# = #????# """ #?? | | ????# #????# [ #?? | | ????# ] #????###########?? | | ????##########????????????????? | | ??????????????????????????????? | | ??????????????????????????????? | | ??????????????????????????????? | | ??????????????????????????????? | | ??????????????????????????????? | | ??????????????????????????????? | | #?######??????????????????????? | | #? ][ #??????????????????????? | | # ][ #??????????????????????? | | # [ #??????????????????????? | | " #??????????????????????? | | # #??????????????????????? | | # #??????????????????????? | | #?######??????????????????????? | | #?????????????????????????????? | +----------------------------------------------------+ Best States ------------- Heat Dissipation 53 Energy Generation 23 Energy Capacity 465 Matter Stores 300 Matter Capacity 300 Sight Range 16 Robot Scan Range 13 Terrain Scan Density 85 ECM Strength 1 Additional Mass Support 6 Resistance: KI 20 Resistance: TH 20 Resistance: EX 20 Resistance: EM 20 Resistance: I 20 Resistance: S 20 Resistance: P 20 Evasion (%) 69 Offensive Hacking 10 Item Schematics ----------------- None Robot Schematics ------------------ None Fabricated ------------ Nothing Alien Tech Used ----------------- None Achievements -------------- None Challenges ------------ None Game ------ Seed RefineryFissionMaul Manual? 0 Play Time 00:32:58 Cumulative 13.3 hours Start 2021.01.05 @ 18:43:44 End 2021.01.05 @ 22:04:02 Sessions 3 Manual Loads 0 Difficulty Adventurer Special Mode None Game No. 26 Rogue 0 Adventurer 26 Explorer 0 Win Type - Total 0 Types 0/0/0/0/0/0/0/0/0 Lore% 13 Gallery% 23 Achievement% 17 Wizard Run 0 Options --------- ASCII 0 Keyboard 0 Movement Mouse Keybinds 0 Fullscreen 2 Font 20/SmallcapsGlow Map View 66x50 Tactical HUD 0 Map Filters NONE Filters NONE Steam 1 RUN: 2f83ec5e-1a33-4bcd-89f8-3de1fafc43e8